bitfinex/quotes_ETHUSD_20220118
["timestamp","ask_amount","ask_price","bid_price","bid_amount"]
[1642525158982,2.45625593,3134.2,3133.9,1.16564701]
[1642525159386,2.45625593,3134.2,3133.5,1.59591]
[1642525159786,3.25428593,3134.2,3133.5,0.79812]
[1642525160789,3.25428593,3134.2,3133.5,1.59616]
[1642525160790,4.05240163,3134.2,3133.5,1.59616]
[1642525160993,0.7982,3134.0,3133.0,3.1109]
[1642525161196,18.81,3133.8,3132.8,4.74209151]
[1642525161392,3.2577621,3133.7,3133.1,0.00113685]
[1642525161590,1.0161,3133.7,3133.1,0.00113685]
[1642525161789,1.70879297,3133.5,3133.1,0.00113685]
[1642525161989,0.5865,3133.4,3133.1,0.00113685]
[1642525162219,0.5865,3133.4,3132.6,0.00397897]
[1642525162421,2.0587894,3132.9,3132.6,0.00397897]
[1642525162724,0.1275,3132.8,3132.6,0.00397897]
[1642525162922,0.5865,3133.4,3132.6,0.00397897]
[1642525163124,0.79829,3133.2,3132.7,0.79836]
[1642525163527,1.09829,3133.2,3132.8,0.00284212]
[1642525163725,1.09829,3133.2,3132.8,2.92958464]
[1642525164128,1.09829,3133.2,3132.9,0.0022737]
[1642525164327,1.09829,3133.2,3132.9,1.5987737]
[1642525164626,1.09829,3133.2,3133.0,0.00170527]
[1642525170220,1.8965941,3133.2,3133.0,0.00170527]
[1642525170825,1.09829,3133.2,3132.9,1.45520191]
[1642525171023,0.3,3133.2,3132.9,2.25345191]
[1642525171221,0.4275,3133.3,3133.0,0.00170527]
[1642525171421,0.3,3133.3,3133.0,0.00170527]
[1642525171622,3.05580659,3133.4,3133.0,0.00170527]
[1642525172423,3.05580659,3133.4,3133.0,1.59810527]
[1642525173228,0.351,3133.3,3133.0,1.59810527]
[1642525173673,1.14924,3133.3,3133.0,1.59810527]
[1642525175079,0.3,3133.2,3133.0,1.59810527]
[1642525176073,1.44924,3133.3,3133.0,1.59810527]
[1642525178121,1.14924,3133.3,3133.0,1.59810527]
[1642525178318,0.351,3133.3,3133.0,1.59810527]
[1642525178918,0.351,3133.3,3133.1,0.7982]
[1642525179118,0.351,3133.3,3133.0,1.59810527]
[1642525179320,1.14924,3133.3,3133.0,1.59810527]
[1642525179721,1.44924,3133.3,3133.0,1.59810527]
[1642525180327,2.3750044,3133.3,3133.0,1.59810527]
[1642525181372,4.80681226,3133.3,3133.0,1.59810527]
[1642525182374,4.80681226,3133.3,3133.0,0.00170527]
[1642525182375,2.43180786,3133.2,3133.0,0.00170527]
[1642525182573,6.69835,3133.1,3133.0,0.00170527]
[1642525182973,6.99835,3133.1,3133.0,0.00170527]
[1642525183574,9.96887147,3133.1,3133.0,0.00170527]
[1642525183779,8.12585,3133.1,3133.0,0.00170527]
[1642525183973,8.12585,3133.1,3132.6,4.74209151]
[1642525183974,8.12585,3133.1,3132.8,0.00284212]
[1642525184175,0.79851,3132.9,3132.7,0.00341054]
[1642525184376,4.4775,3132.8,3132.7,0.00341054]
[1642525184615,5.4775,3132.8,3132.7,0.00261054]
[1642525184818,0.1275,3132.8,3132.7,0.00261054]
[1642525185614,2.73252483,3132.9,3132.7,0.00261054]
[1642525186421,0.3,3132.9,3132.7,0.00261054]
[1642525186619,0.7983,3133.1,3132.7,0.00261054]
[1642525186620,1.0983,3133.1,3132.7,0.00261054]
[1642525186820,1.0983,3133.1,3132.7,1.59913054]
[1642525187019,1.0983,3133.1,3132.7,0.80087054]
[1642525187219,1.0983,3133.1,3132.8,0.00204212]
[1642525187419,0.3,3133.1,3132.8,0.00204212]
[1642525187819,0.3,3133.2,3132.8,0.80029212]
[1642525188021,3.88177483,3133.3,3132.8,0.80029212]
[1642525188221,3.88177483,3133.3,3132.9,0.0014737]
[1642525188869,3.58177483,3133.3,3132.9,0.0014737]
[1642525189074,2.78352483,3133.3,3132.9,1.5979537]
[1642525189269,1.95758659,3133.4,3133.0,3.48997907]
[1642525189471,1.95758659,3133.4,3133.1,1.40995334]
[1642525189667,1.95758659,3133.4,3133.2,2.64700255]
[1642525189867,3.9798638,3133.6,3133.2,2.64700255]
[1642525189868,3.77630527,3133.6,3133.2,2.64700255]
[1642525190272,0.00193684,3133.5,3133.2,2.64700255]
[1642525190473,2.22945182,3133.3,3133.2,2.64700255]
[1642525190669,0.00136842,3133.4,3133.2,4.24295955]
[1642525190871,0.00136842,3133.4,3133.3,2.61776397]
[1642525191072,3.7746,3133.6,3133.3,2.61776397]
[1642525191073,0.00193684,3133.5,3133.3,2.61776397]
[1642525191273,3.7746,3133.6,3133.3,2.61776397]
[1642525191274,0.00136842,3133.4,3133.3,2.61776397]
[1642525191678,0.00136842,3133.4,3133.3,4.76811126]
[1642525192131,0.00136842,3133.4,3133.3,2.61776397]
[1642525192519,0.00136842,3133.4,3133.3,3.41578397]
[1642525192919,0.00136842,3133.4,3133.3,0.79802]
[1642525194828,0.00136842,3133.4,3133.3,3.2438994]
[1642525195228,0.00136842,3133.4,3133.3,0.79802]
[1642525198877,0.00136842,3133.4,3133.3,5.54011151]
[1642525199718,3.44496842,3133.6,3133.3,6.33825151]
[1642525199920,3.57246842,3133.6,3133.4,0.79814]
[1642525200124,4.37063842,3133.6,3133.4,0.79814]
[1642525200424,0.92567,3133.6,3133.4,0.79814]
[1642525200625,1.22567,3133.6,3133.4,0.79814]
[1642525201026,1.22567,3133.6,3133.4,0.79502041]
[1642525201827,1.22567,3133.6,3133.4,0.79194364]
[1642525202428,0.1275,3133.6,3133.5,1.79005038]
[1642525202631,3.22131735,3133.8,3133.5,5.18806459]
[1642525203030,3.34881735,3134.0,3133.5,5.18806459]
[1642525203469,5.20444663,3134.0,3133.5,5.98601459]
[1642525203668,5.20444663,3134.0,3133.6,1.59591]
[1642525203872,5.20444663,3134.0,3133.7,3.34932673]
[1642525204073,3.64881735,3134.0,3133.7,3.34932673]
[1642525204276,0.4275,3134.0,3133.7,0.79794]
[1642525204977,0.4275,3134.0,3133.7,1.59594]
[1642525205378,0.4275,3134.0,3133.7,4.05758554]
[1642525206376,0.00284212,3133.9,3133.7,4.05758554]
[1642525206576,0.00284212,3133.9,3133.7,1.59594]
[1642525206779,0.0022737,3133.8,3133.7,3.24804457]
[1642525206978,0.0022737,3133.8,3133.7,4.42137981]
[1642525207644,0.0022737,3133.8,3133.7,4.55957978]
[1642525207845,0.0022737,3133.8,3133.7,4.68707978]
[1642525208848,0.0022737,3133.8,3133.7,4.55957978]
[1642525209249,0.0022737,3133.8,3133.7,5.16267709]
[1642525209648,0.0022737,3133.8,3133.7,5.29017709]
[1642525210046,0.0022737,3133.8,3133.7,5.59017709]
[1642525210549,0.0022737,3133.8,3133.7,5.29017709]
[1642525210747,0.0022737,3133.8,3133.7,5.59017709]
[1642525211772,0.0022737,3133.8,3133.7,5.29017709]
[1642525211973,0.0022737,3133.8,3133.7,5.46267709]
[1642525212175,0.0022737,3133.8,3133.7,7.50157709]
[1642525212574,3.22131735,3134.8,3133.8,5.9]
[1642525212775,3.22131735,3134.8,3134.2,20.40526]
[1642525212976,0.00511581,3134.7,3134.4,3.24806086]
[1642525213176,0.00511581,3134.7,3134.5,2.9324926]
[1642525213374,0.00454738,3134.6,3134.5,2.9324926]
[1642525214625,0.00454738,3134.6,3134.5,4.5277273]
[1642525215929,0.00454738,3134.6,3134.5,5.8277273]
[1642525216130,0.00454738,3134.6,3134.5,4.8277273]
[1642525216532,0.00454738,3134.6,3134.5,5.9552273]
[1642525216934,0.00454738,3134.6,3134.5,4.9552273]
[1642525217132,0.00454738,3134.6,3134.5,5.9552273]
[1642525217534,0.00454738,3134.6,3134.5,5.1576073]
[1642525218579,0.00454738,3134.6,3134.5,3.0599926]
[1642525218778,0.00454738,3134.6,3134.5,0.1275]
[1642525219277,0.00454738,3134.6,3134.4,2.95993832]
[1642525219278,0.13204738,3134.6,3134.4,2.95993832]
[1642525219480,0.1275,3134.5,3134.1,1.1988]
[1642525219679,0.1275,3134.5,3134.4,0.30155302]
[1642525219680,0.13147896,3134.5,3134.4,0.30155302]
[1642525219978,0.1275,3134.5,3134.4,0.30155302]
[1642525220385,2.7775,3134.5,3134.4,0.30155302]
[1642525220579,0.1275,3134.5,3134.4,2.36086154]
[1642525220978,0.1275,3134.5,3134.4,0.30155302]
[1642525221378,0.1275,3134.6,3134.4,0.30155302]
[1642525221777,0.13204738,3134.6,3134.4,0.30155302]
[1642525221978,1.73996019,3134.5,3134.4,0.30155302]
[1642525222929,4.31206019,3134.5,3134.4,0.30155302]
[1642525223326,10.21206019,3134.5,3134.4,0.30155302]
[1642525223527,5.9,3134.4,3133.7,0.08156372]
[1642525223726,0.0301553,3134.2,3133.7,0.08156372]
[1642525223926,0.1275,3134.1,3133.7,0.08156372]
[1642525224126,1.66643357,3133.8,3133.7,0.87966372]
[1642525224326,0.0301553,3134.2,3133.7,0.87966372]
[1642525224327,0.00113684,3134.0,3133.7,0.87966372]
[1642525224526,0.1276,3133.9,3133.7,0.87966372]
[1642525224928,0.00170527,3134.1,3133.7,0.87966372]
[1642525224929,0.1275,3134.0,3133.7,0.87966372]
[1642525225230,0.1275,3134.0,3133.7,0.08156372]
[1642525225231,0.79812,3133.9,3133.7,0.08156372]
[1642525225431,4.5275,3133.8,3133.7,0.08156372]
[1642525226479,6.75393747,3133.8,3133.7,0.08156372]
[1642525228082,8.15123747,3133.8,3133.7,0.08156372]
[1642525229279,3.75123747,3133.8,3133.7,0.08156372]
[1642525229480,2.65393747,3133.8,3133.7,0.08156372]
[1642525229718,2.52643747,3133.8,3133.7,0.38310801]
[1642525232623,0.3,3133.8,3133.7,0.38310801]
[1642525233022,0.42863684,3134.0,3133.7,0.38310801]
[1642525233226,0.42863684,3134.0,3133.7,1.18123801]
[1642525233227,0.30113684,3134.0,3133.7,1.18123801]
[1642525233470,0.79813,3133.9,3133.7,1.18123801]
[1642525233671,0.00113684,3134.0,3133.7,1.18123801]
[1642525234272,1.69181139,3133.8,3133.7,1.18123801]
[1642525234473,0.00113684,3134.0,3133.7,1.97926801]
[1642525234776,0.00113684,3134.0,3133.8,1.59598]
[1642525234977,0.00113684,3134.0,3133.9,0.30154429]
[1642525235881,2.1950765,3134.0,3133.9,0.30154429]
[1642525240248,7.5450765,3134.0,3133.9,0.30154429]
[1642525240449,9.3827765,3134.0,3133.9,0.30154429]
[1642525240649,10.4933765,3134.0,3133.9,0.30154429]
[1642525241777,10.6141765,3134.0,3133.9,0.30154429]
[1642525241977,10.6173765,3134.0,3133.9,0.30154429]
[1642525242277,10.2394765,3134.0,3133.9,0.27138987]
[1642525242476,10.2386765,3134.0,3133.3,4.71509124]
[1642525242678,1.35506421,3133.5,3133.3,4.71509124]
[1642525242877,3.20386474,3133.5,3133.4,0.0022737]
[1642525243279,1.84880053,3133.5,3133.4,0.0022737]
[1642525243683,3.44549593,3133.5,3133.4,0.0022737]
[1642525244079,7.14549593,3133.5,3133.4,0.0022737]
[1642525244722,8.56056641,3133.5,3133.4,0.0022737]
[1642525245423,8.06222101,3133.5,3133.4,0.0022737]
[1642525245622,2.64715053,3133.5,3133.4,0.0022737]
[1642525246027,2.94715053,3133.5,3133.4,0.0022737]
[1642525246229,2.64715053,3133.5,3133.4,0.0022737]
[1642525246426,2.94715053,3133.5,3133.4,0.0022737]
[1642525247426,2.64715053,3133.5,3133.4,0.0022737]
[1642525247627,1.84880053,3133.5,3133.4,0.0022737]
[1642525248029,4.34880053,3133.5,3133.4,0.27366357]
[1642525248677,1.84880053,3133.5,3133.4,0.27366357]
[1642525250187,4.29880053,3133.5,3133.4,0.27366357]
[1642525250790,5.65,3133.4,3133.1,0.21896632]
[1642525250987,6.9984887,3133.3,3132.7,0.29062744]
[1642525251189,0.5865,3133.2,3132.7,0.29062744]
[1642525251389,1.5865,3133.2,3132.7,0.29062744]
[1642525251587,1.5865,3133.2,3132.1,0.7986]
[1642525251588,1.7089,3133.2,3132.1,0.7986]
[1642525251785,0.4500861,3133.1,3132.1,0.7986]
[1642525251986,0.4500861,3133.1,3132.0,3.96282928]
[1642525251987,5.9,3132.6,3132.0,0.90745253]
[1642525252234,0.79866,3132.4,3131.9,1.59715]
[1642525252433,0.79866,3132.4,3131.2,0.1276]
[1642525252633,0.79866,3132.4,3132.0,0.00113685]
[1642525252634,3.9739,3132.3,3132.0,0.00113685]
[1642525252833,0.1277,3132.2,3131.4,1.5232176]
[1642525253034,3.90993181,3132.1,3131.1,0.127823]
[1642525253233,0.7988,3131.9,3131.5,0.00284211]
[1642525253434,0.5867,3131.8,3131.5,0.00284211]
[1642525253632,5.35,3131.7,3131.1,0.08066511]
[1642525253832,2.05006717,3131.6,3131.1,0.08066511]
[1642525254040,2.05006717,3131.6,3131.2,0.00170527]
[1642525254234,2.05006717,3131.6,3131.2,1.59921527]
[1642525254435,2.84891887,3131.6,3131.2,1.59921527]
[1642525254636,5.9,3131.4,3131.2,0.33429758]
[1642525254838,5.9,3131.4,3131.1,0.08066511]
[1642525255040,5.9,3131.4,3131.1,0.87953511]
[1642525255234,5.9,3131.4,3131.1,0.26367656]
[1642525255638,1.22774655,3131.5,3130.7,1.5978]
[1642525255896,0.79889,3131.3,3130.9,0.79882]
[1642525256099,0.79889,3131.3,3130.9,0.0022737]
[1642525256296,0.79889,3131.3,3131.0,0.00170527]
[1642525256699,4.11703685,3131.5,3131.0,0.00170527]
[1642525257100,4.11703685,3131.5,3131.0,1.59931527]
[1642525257101,4.91581685,3131.5,3131.0,1.59931527]
[1642525257498,4.91581685,3131.5,3131.1,0.00113685]
[1642525257898,5.9,3131.4,3131.0,1.54874685]
[1642525258098,7.49941527,3131.4,3131.0,1.54874685]
[1642525258300,0.7989,3131.2,3131.0,1.12194617]
[1642525258501,0.7989,3131.2,3130.8,0.15682879]
[1642525258502,1.0989,3131.2,3130.8,0.15682879]
[1642525258702,0.5867,3131.1,3130.1,7.93459584]
[1642525258903,0.5867,3131.1,3130.9,0.00113685]
[1642525259101,2.1848128,3131.1,3130.9,0.00113685]
[1642525259306,8.00966887,3131.0,3130.9,0.00113685]
[1642525259502,9.10873887,3131.0,3130.9,3.685e-05]
[1642525259741,0.7991597,3130.8,3130.1,0.48459584]
[1642525259944,6.4867,3130.7,3130.2,0.00397896]
[1642525260143,1.0,3130.6,3130.2,0.00397896]
[1642525260341,1.0,3130.6,3128.9,16.1277]
[1642525260342,7.68925845,3130.3,3128.9,16.1277]
[1642525260544,0.79923,3129.9,3129.1,1.59838]
[1642525260859,1.1278,3130.2,3129.4,1.59838]
[1642525260860,2.14276586,3129.8,3129.4,1.59838]
[1642525261244,2.14276586,3129.8,3129.5,0.00397896]
[1642525262042,2.14276586,3129.8,3129.5,1.90221896]
[1642525262243,2.14276586,3129.8,3129.6,2.47765126]
[1642525262443,2.14276586,3129.8,3129.6,2.4810618]
[1642525262643,2.14276586,3129.8,3129.7,0.00284212]
[1642525263476,2.14276586,3129.8,3129.6,2.43049338]
[1642525264281,0.00170527,3130.5,3129.7,1.6774216]
[1642525264587,0.00397897,3130.4,3129.9,1.09883]
[1642525264780,0.1277,3131.0,3130.0,3.08352637]
[1642525264983,0.1277,3131.0,3130.0,3.03580007]
[1642525265185,0.00113684,3130.6,3130.0,3.03580007]
[1642525265386,1.672384,3130.1,3130.0,3.03580007]
[1642525265587,0.00113684,3130.6,3130.0,3.03580007]
[1642525265885,0.00113684,3130.6,3130.1,0.00170527]
[1642525266485,0.00113684,3130.6,3130.1,0.80052527]
[1642525266687,1.9253187,3130.4,3130.2,2.49051835]
[1642525266886,1.9253187,3130.4,3130.2,2.7916552]
[1642525267338,1.9253187,3130.4,3130.2,2.4916552]
[1642525267538,1.9253187,3130.4,3130.2,2.7916552]
[1642525268040,0.00113684,3130.6,3130.2,3.5906152]
[1642525268239,0.00113684,3130.6,3130.3,3.19569]
[1642525268442,0.00113684,3130.6,3130.3,5.67574181]
[1642525268844,0.00113684,3130.6,3130.4,0.1277]
[1642525269044,0.00113684,3130.6,3130.3,5.67574181]
[1642525269445,0.00113684,3130.6,3130.3,3.19569]
[1642525269647,0.00113684,3130.6,3130.4,0.79883]
[1642525269847,1.46678908,3130.6,3130.3,1.59787]
[1642525270047,0.1277,3130.5,3130.3,1.59787]
[1642525270246,0.1277,3130.5,3130.2,0.00113685]
[1642525270451,8.14561191,3130.4,3129.5,0.2986502]
[1642525270647,0.0777,3130.3,3129.5,0.2986502]
[1642525270877,0.0777,3130.3,3129.6,0.00341054]
[1642525271084,0.0777,3130.3,3129.7,1.59817]
[1642525271479,0.0777,3130.3,3129.8,0.00227369]
[1642525271679,2.09073831,3129.9,3129.8,0.80131369]
[1642525271981,2.83553831,3129.9,3129.8,0.00227369]
[1642525272580,2.96333831,3129.9,3129.8,0.00227369]
[1642525272781,3.26333831,3129.9,3129.8,0.00227369]
[1642525272979,2.96333831,3129.9,3129.8,0.00227369]
[1642525273580,2.83553831,3129.9,3129.8,0.00227369]
[1642525274829,3.13553831,3129.9,3129.8,0.00227369]
[1642525275230,3.26333831,3129.9,3129.8,0.00227369]
[1642525278384,0.4278,3129.9,3129.8,0.00227369]
[1642525278581,0.1278,3130.3,3129.8,0.00227369]
[1642525278783,0.1278,3130.3,3129.8,0.80128369]
[1642525279183,0.1278,3130.3,3129.9,0.00170527]
[1642525279484,2.17755539,3130.2,3129.9,2.39863527]
[1642525279882,2.17755539,3130.2,3130.0,0.00113685]
[1642525280190,0.1278,3130.3,3130.0,0.00113685]
[1642525280390,0.00113684,3130.4,3130.0,1.89911685]
[1642525280983,3.8673,3130.7,3130.0,1.89911685]
[1642525281182,3.8673,3130.7,3130.1,0.00170526]
[1642525281383,0.00113685,3130.6,3130.5,1.31757523]
[1642525281783,0.00113685,3130.6,3130.1,1.59945526]
[1642525281983,0.00113685,3130.6,3130.2,2.39643]
[1642525282224,0.00113685,3130.6,3130.2,3.99512684]
[1642525282828,0.00113685,3130.6,3130.2,5.39604156]
[1642525283424,0.00113685,3130.6,3130.3,1.09878]
[1642525283623,0.00113685,3130.6,3130.3,1.59761]
[1642525283831,0.00113685,3130.6,3130.3,1.89761]
[1642525284529,0.00113685,3130.6,3130.3,1.59761]
[1642525287087,0.96153685,3130.6,3130.3,1.59761]
[1642525287486,0.96153685,3130.6,3130.2,1.59869684]
[1642525287487,0.1277,3130.5,3130.2,1.59869684]
[1642525287687,0.9604,3130.4,3130.2,0.00113684]
[1642525287891,7.4471,3130.3,3130.2,0.00113684]
[1642525288087,7.4471,3130.3,3130.0,0.79919]
[1642525288088,6.8604,3130.2,3130.1,0.00170526]
[1642525288288,11.54286681,3130.2,3130.1,0.00170526]
[1642525288689,12.00186681,3130.2,3129.9,0.00284211]
[1642525288888,0.9604,3130.0,3129.9,0.00284211]
[1642525289087,7.4471,3130.0,3129.9,0.00284211]
[1642525289290,7.7471,3130.0,3129.9,0.00284211]
[1642525289488,8.15927697,3130.0,3129.9,0.00284211]
[1642525290129,5.9,3129.9,3129.5,1.8971202]
[1642525290332,1.5472,3129.8,3129.5,1.0979802]
[1642525290532,1.75978,3129.7,3129.6,0.00170527]
[1642525290728,4.4604,3129.6,3129.5,1.04968547]
[1642525290931,1.0882,3129.6,3129.5,1.04968547]
[1642525291132,1.5472,3129.6,3129.5,1.04968547]
[1642525291534,1.4194,3129.6,3129.5,3.5739719]
[1642525291732,0.00113685,3130.6,3129.5,3.8739719]
[1642525291733,0.459,3130.3,3129.5,3.8739719]
[1642525291931,0.1278,3130.4,3129.5,3.8739719]
[1642525292132,0.00284212,3130.1,3129.5,3.8739719]
[1642525292534,0.00227369,3130.0,3129.7,1.5981]
[1642525292932,0.00170527,3129.9,3129.7,1.5981]
[1642525293135,2.08258984,3129.9,3129.7,1.5981]
[1642525293394,0.00113685,3129.8,3129.7,0.79898]
[1642525295988,0.72513685,3129.8,3129.7,0.79898]
[1642525296587,1.02513685,3129.8,3129.6,1.59824]
[1642525296790,0.5868,3129.7,3129.5,0.2986502]
[1642525296991,0.8868,3129.7,3129.5,0.2986502]
[1642525297228,1.2632,3129.7,3129.5,0.2986502]
[1642525297430,6.69941,3129.6,3129.5,0.2986502]
[1642525297627,7.28621,3129.6,3129.5,0.2986502]
[1642525298628,8.28621,3129.6,3129.5,0.2986502]
[1642525299434,8.28621,3129.6,3129.0,0.1278]
[1642525299435,5.9,3129.5,3129.0,0.1278]
[1642525299634,6.64881283,3129.1,3129.0,0.1278]
[1642525299832,8.07421283,3129.1,3129.0,0.1278]
[1642525300034,5.9,3129.0,3128.6,0.77734]
[1642525300234,0.5868,3128.9,3128.6,0.77734]
[1642525300434,0.5868,3128.9,3128.7,0.00511581]
[1642525300739,8.44087849,3128.8,3128.7,0.00511581]
[1642525300992,5.9,3128.7,3128.2,1.45425581]
[1642525301190,0.459,3128.6,3128.2,1.25539266]
[1642525301391,1.57745426,3128.6,3128.2,1.05539266]
[1642525301588,1.87745426,3128.6,3128.3,0.00113685]
[1642525301790,1.55865,3128.6,3128.3,1.60020685]
[1642525301990,0.759,3128.6,3128.3,1.60020685]
[1642525302591,0.759,3128.6,3128.3,0.80064685]
[1642525302791,0.759,3128.6,3128.3,0.00113685]
[1642525302792,1.5585691,3128.6,3128.3,0.00113685]
[1642525303388,5.19968,3128.4,3128.3,0.00113685]
[1642525303593,6.49968,3128.4,3128.3,0.00113685]
[1642525303993,6.95868,3128.4,3128.3,0.00113685]
[1642525304192,7.08648,3128.4,3128.3,0.00113685]
[1642525304390,7.08648,3128.4,3127.9,0.00341054]
[1642525304625,0.79972,3128.2,3127.9,0.00341054]
[1642525304926,0.79972,3128.2,3127.8,1.5993]
[1642525304927,1.25872,3128.2,3127.8,1.45271054]
[1642525305131,0.12893685,3128.1,3127.8,1.45271054]
[1642525305731,0.00113685,3128.1,3127.8,1.45271054]
[1642525306533,0.00113685,3128.1,3127.9,2.59708482]
[1642525306835,0.00113685,3128.1,3127.9,2.39854]
[1642525308477,0.00113685,3128.1,3127.9,2.14854]
[1642525309077,1.85352107,3128.3,3127.9,2.14854]
[1642525309277,1.85352107,3128.3,3128.0,1.59916]
[1642525309578,1.85352107,3128.3,3128.0,3.19831]
[1642525310479,2.15352107,3128.3,3128.0,3.19831]
[1642525311082,0.1278,3128.2,3128.0,3.19831]
[1642525311483,0.1278,3128.2,3128.0,3.14831]
[1642525313034,1.37322593,3128.1,3128.0,3.14831]
[1642525313232,2.49472593,3128.1,3128.0,3.14831]
[1642525313434,1.1215,3128.1,3128.0,3.14831]
[1642525314436,0.9937,3128.1,3128.0,3.14831]
[1642525315238,0.9937,3128.1,3127.9,1.34904]
[1642525315439,0.1278,3128.0,3127.9,1.34904]
[1642525315641,0.1278,3128.0,3127.8,1.5994]
[1642525315907,0.1278,3128.0,3127.9,0.00113685]
[1642525315908,0.5868,3128.0,3127.9,0.00113685]
[1642525316303,7.0368,3128.0,3127.9,0.00113685]
[1642525316706,3.9861987,3128.0,3127.9,0.00113685]
[1642525317107,4.2861987,3128.0,3127.9,0.00113685]
[1642525317308,10.1861987,3128.0,3127.9,0.00113685]
[1642525317707,10.1861987,3128.0,3127.8,0.00170527]
[1642525317708,2.6866187,3128.0,3127.8,0.00170527]
[1642525317908,0.3,3127.9,3127.8,0.00170527]
[1642525318307,0.1278,3128.0,3127.8,0.00170527]
[1642525318308,1.4278,3128.0,3127.8,0.00170527]
[1642525318507,0.4278,3128.0,3127.8,0.00170527]
[1642525318707,0.1278,3128.0,3127.8,0.00170527]
[1642525318908,0.1278,3128.0,3127.8,1.60109527]
[1642525319111,0.3,3127.9,3127.8,1.60109527]
[1642525319307,0.4278,3128.0,3127.8,1.60109527]
[1642525319507,0.1278,3128.0,3127.8,1.60109527]
[1642525319738,0.5868,3128.0,3127.8,1.60109527]
[1642525320133,1.3865479,3128.0,3127.8,1.60109527]
[1642525320335,0.459,3128.0,3127.8,1.60109527]
[1642525322636,6.0278,3127.9,3127.8,1.60109527]
[1642525322839,7.333,3127.9,3127.8,1.60109527]
[1642525323042,8.633,3127.9,3127.8,1.60109527]
[1642525323243,8.633,3127.9,3127.8,0.00170527]
[1642525323486,9.43288,3127.9,3127.8,0.00170527]
[1642525323887,9.30508,3127.9,3127.8,0.00170527]
[1642525325192,3.40508,3127.9,3127.8,0.00170527]
[1642525325394,2.55888,3127.9,3127.8,0.00170527]
[1642525325593,1.55888,3127.9,3127.8,0.00170527]
[1642525325790,2.55888,3127.9,3127.8,0.00170527]
[1642525326189,1.55888,3127.9,3127.8,0.00170527]
[1642525326390,0.759,3127.9,3127.8,0.00170527]
[1642525327346,3.609,3127.9,3127.8,0.00170527]
[1642525328147,6.659,3127.9,3127.8,0.00170527]
[1642525328447,7.659,3127.9,3127.8,0.00170527]
[1642525329448,9.25858,3127.9,3127.8,0.00170527]
[1642525330984,9.49320163,3127.9,3127.8,0.00170527]
[1642525331183,10.49190163,3127.9,3127.8,0.00170527]
[1642525332887,10.49190163,3127.9,3127.7,0.76855128]
[1642525333186,1.0,3127.8,3127.7,0.17828938]
[1642525333387,1.459,3127.8,3127.6,1.59958]
[1642525333589,2.2588444,3127.8,3127.6,1.59958]
[1642525333790,2.2588444,3127.8,3127.6,0.1292467]
[1642525333989,4.22127972,3127.8,3127.7,0.67054331]
[1642525334189,4.22127972,3127.8,3127.5,2.39948]
[1642525334391,0.79989,3127.7,3127.5,2.06020389]
[1642525334647,0.79989,3127.7,3127.6,0.00113685]
[1642525334648,1.09989,3127.7,3127.6,0.00113685]
[1642525334836,1.09989,3127.7,3127.5,1.35266975]
[1642525334837,5.9,3127.6,3127.3,1.5998]
[1642525335037,5.9,3127.6,3127.4,1.59985]
[1642525335038,2.2589678,3127.5,3127.4,1.59985]
[1642525335240,8.1589678,3127.5,3127.4,1.40098685]
[1642525335440,8.4589678,3127.5,3127.4,1.40098685]
[1642525335839,8.69358943,3127.5,3127.4,1.40098685]
[1642525336044,1.99362163,3127.5,3127.4,1.40098685]
[1642525336443,0.99362163,3127.5,3127.4,1.40098685]
[1642525336645,1.99362163,3127.5,3127.4,1.40098685]
[1642525336846,0.99362163,3127.5,3127.4,1.40098685]
[1642525337063,1.99362163,3127.5,3127.4,1.40098685]
[1642525337246,0.99362163,3127.5,3127.4,1.40098685]
[1642525337445,1.99362163,3127.5,3127.4,1.40098685]
[1642525338145,6.79362163,3127.5,3127.4,1.40098685]
[1642525339886,6.79362163,3127.5,3127.3,0.08591439]
[1642525339887,6.2011,3127.4,3127.3,0.08591439]
[1642525340091,7.788,3127.4,3127.2,0.79992]
[1642525340392,7.788,3127.4,3127.1,0.79989]
[1642525340393,0.1279,3127.3,3127.1,0.79989]
[1642525340589,0.459,3127.2,3127.1,0.79989]
[1642525341688,1.459,3127.2,3127.1,0.79989]
[1642525341887,1.459,3127.2,3127.1,0.69989]
[1642525342342,1.69362163,3127.2,3127.1,0.69989]
[1642525343739,0.69362163,3127.2,3127.1,0.69989]
[1642525348892,0.69362163,3127.2,3127.0,0.79988]
[1642525348893,1.69362163,3127.2,3127.0,0.79988]
[1642525349094,1.99362163,3127.2,3127.0,0.79988]
[1642525350170,2.79360493,3127.2,3127.0,0.79988]
[1642525350968,0.23462163,3127.1,3127.0,0.79988]
[1642525351169,0.69362163,3127.1,3127.0,0.79988]
[1642525351369,0.69362163,3127.1,3127.0,0.80215369]
[1642525351969,5.74362163,3127.1,3127.0,0.80215369]
[1642525353169,5.74362163,3127.1,3127.0,0.00227369]
[1642525353385,6.54359163,3127.1,3127.0,0.00227369]
[1642525354593,7.54359163,3127.1,3127.0,0.00227369]
[1642525355398,7.67149163,3127.1,3127.0,0.00227369]
[1642525356396,7.54359163,3127.1,3127.0,0.00227369]
[1642525358437,6.54359163,3127.1,3127.0,0.00227369]
[1642525359645,7.54359163,3127.1,3127.0,0.00227369]
[1642525359844,6.54359163,3127.1,3127.0,0.00227369]
[1642525360244,6.84359163,3127.1,3127.0,0.00227369]
[1642525361094,7.84359163,3127.1,3127.0,0.00227369]
[1642525361694,7.97149163,3127.1,3127.0,0.00227369]
[1642525364939,5.9,3127.0,3126.9,1.35440998]
[1642525365141,7.4869,3127.0,3126.9,1.35440998]
[1642525366341,6.359,3127.0,3126.8,1.60002]
[1642525366541,2.0589174,3127.0,3126.8,1.60002]
[1642525366942,2.29353903,3127.0,3126.8,1.60002]
[1642525367541,3.59353903,3127.0,3126.8,1.60002]
[1642525367743,0.23462163,3126.9,3126.8,0.79999]
[1642525367943,0.69362163,3126.9,3126.8,0.79999]
[1642525368143,1.69362163,3126.9,3126.8,0.80112685]
[1642525369691,4.19362163,3126.9,3126.8,0.80112685]
[1642525370292,1.69362163,3126.9,3126.8,0.80112685]
[1642525370494,1.99362163,3126.9,3126.8,0.00113685]
[1642525372141,0.69362163,3126.9,3126.8,0.00113685]
[1642525373850,0.99362163,3126.9,3126.8,0.00113685]
[1642525375449,0.99362163,3126.9,3126.7,1.55119685]
[1642525375450,1.79359163,3126.9,3126.7,1.55119685]
[1642525376692,0.23462163,3126.8,3126.7,1.55119685]
[1642525376893,0.82152163,3126.8,3126.7,1.55119685]
[1642525377093,0.82152163,3126.8,3126.7,0.79999]
[1642525378092,0.82152163,3126.8,3126.5,0.36747546]